[Event "12th National Amateur Chess-ch 2025"]
[Site "Bihar"]
[Date "2025.03.28"]
[Round "6.2"]
[White "Sham R"]
[Black "Vidit Sethi"]
[Result "1-0"]
[Annotator "TA"]
[ECO "A19"]
[WhiteElo "2128"]
[BlackElo "1832"]
[PlyCount "91"]
[EventDate "2025.03.25"]
[EventCountry "IND"]
[SourceTitle "playchess.com"]
[Source "ChessBase"]
[SourceQuality "1"]
[TimeControl "5400+30"]

{[%evp 9,91,6,-3,-5,15,-16,33,33,21,21,30,-60,4,0,26,10,11,-9,-3,0,0,0,0,0,0,-56,-65,-62,-47,-65,-66,-81,-32,-39,-7,-30,23,22,33,32,31,32,33,-62,-16,-27,-27,-20,0,-86,-65,-88,-70,-66,-65,-64,-59,-62,-26,-32,-34,-30,-35,-31,0,-31,0,-31,0,0,275,272,450,406,479,433,5710,2797,1716,1823,29996,1426,29997,29998]} 1. c4 {[%emt 0:01:02]} Nf6 {[%emt 0:00:08]} 2. Nc3 {[%emt 0:00:02]} e6 {[%emt 0:00:14]} 3. e4 {[%emt 0:00:02][%cal Be2e4,Be4e5][%mdl 32]} c5 {[%emt 0:01:25]} 4. e5 {[%emt 0:02:43]} Ng8 {[%emt 0:00:06]} 5. Nf3 {[%emt 0:00:06]} Nc6 {[%emt 0:00:17]} 6. d3 {[%emt 0:03:52] A19: English Opening: Flohr-Mikenas System with 3...c5.} f6 {[%emt 0:09:36]} 7. Bf4 {[%emt 0:02:18]} fxe5 {[%emt 0:00:54]} (7... d6 $1 $11) 8. Nxe5 $14 {[%emt 0:00:03] White is slightly better.} Qf6 {[%emt 0:04:24][%csl LRe5,LRf4]} 9. Nxc6 {[%emt 0:00:03]} (9. Qh5+ $2 g6 10. Qf3 Nxe5 $19) 9... Qxf4 {[%emt 0:00:49]} 10. Na5 {[%emt 0:03:51]} (10. g3 $11 Qc7 11. Qh5+ g6 12. Qe5 Qxe5+ 13. Nxe5) 10... Nf6 $146 {[%emt 0:00:46]} (10... b6 $15 11. Nb3 Bb7) ({Predecessor:} 10... b6 11. Nb3 Nf6 12. g3 Qe5+ 13. Qe2 Qxe2+ 14. Bxe2 Bb7 15. O-O Be7 16. Rae1 O-O {1-0 Lehtosaari,K-Arasola,E FIN-ch ME qual corr 1984}) 11. g3 $11 {[%emt 0:05:39]} Qb8 {[%emt 0:05:46]} 12. Bg2 {[%emt 0:00:55]} b6 {[%emt 0:00:06]} 13. Qf3 {[%emt 0:03:46]} Qe5+ {[%emt 0:00:09]} 14. Kf1 {[%emt 0:00:12]} Rb8 {[%emt 0:00:37]} 15. Re1 {[%emt 0:00:19]} Qg5 {[%emt 0:01:55]} 16. Nb3 {[%emt 0:11:04]} Be7 {[%emt 0:01:05]} 17. Ne4 {[%emt 0:03:34]} ({White should play} 17. Qe2 $11) 17... Nxe4 $15 {[%emt 0:00:18]} 18. dxe4 {[%emt 0:00:03]} Ba6 {[%emt 0:00:45]} 19. Qc3 $1 {[%emt 0:08:36]} O-O {[%emt 0:01:17]} 20. Kg1 {[%emt 0:00:32] [#]} e5 {[%emt 0:00:46]} (20... Qf6 $1 $17 {[%cal Rf6f2]} 21. Qxf6 Bxf6 (21... gxf6 22. Bf1 $17)) 21. Nd2 {[%emt 0:06:13][%cal Bb3d2,Bd2f1,Bf1e3][%mdl 32]} d6 {[%emt 0:00:21]} 22. Nf1 {[%emt 0:09:25]} Bb7 {[%emt 0:11:13]} (22... Qf6 $142 23. Qc2 Qf7) 23. Ne3 $11 {[%emt 0:00:54]} g6 {[%emt 0:02:45]} 24. h4 {[%emt 0:01:48]} Qf6 {[%emt 0:03:16]} 25. Qd2 {[%emt 0:05:28] Successful Defense White} h5 {[%emt 0:04:53]} 26. g4 {[%emt 0:03:22]} (26. f3 $14) 26... Qg7 {[%emt 0:15:35]} (26... hxg4 $15 27. h5 gxh5) 27. gxh5 {[%emt 0:00:43]} gxh5 {[%emt 0:00:02]} 28. Rh3 $1 {[%emt 0:00:24]} ({Avoid the trap} 28. Nf5 $2 Rxf5 29. Re3 Rf4 $19) 28... Kh8 $1 {[%emt 0:04:44][%cal Ob7c8]} 29. Rg3 {[%emt 0:04:22]} (29. Qe2 $11 {keeps the balance.}) 29... Qh6 $17 {[%emt 0:00:31]} 30. Qd3 {[%emt 0:17:51]} Bxh4 {[%emt 0:03:32]} 31. Rf3 {[%emt 0:01:53]} Rxf3 {[%emt 0:00:04]} 32. Bxf3 {[%emt 0:00:02]} Bc8 {[%emt 0:08:30] This pair of bishops is nice.} 33. Kf1 $1 {[%emt 0:03:09]} Bh3+ {[%emt 0:01:47]} 34. Ke2 $1 {[%emt 0:00:09]} Rf8 {[%emt 0:00:11][%cal Of8f3] Threatens to win with ...Rxf3!.} 35. Nf5 $1 {[%emt 0:00:43]} Bxf5 {[%emt 0:00:54]} 36. exf5 {[%emt 0:00:02]} Bg5 {[%emt 0:01:05]} 37. Rg1 {[%emt 0:01:36]} h4 {[%emt 0:00:47]} 38. Qe4 {[%emt 0:00:07]} h3 {[%emt 0:00:34]} 39. Qg4 {[%emt 0:01:56]} h2 $2 {[%emt 0:01:17][%mdl 8192] [#]} (39... e4 $11 40. Bxe4 (40. Qxg5 exf3+ 41. Kxf3 Qh7 $11) 40... h2) 40. Rg3 $1 $18 {[%emt 0:00:14][%cal Og3h3]} e4 $2 {[%emt 0:07:32]} (40... h1=R) 41. Bh1 {[%emt 0:00:10][%cal Og3h3] Rh3! would now be deadly.} Qf6 {[%emt 0:02:01]} 42. Qxg5 {[%emt 0:00:13]} Qxb2+ {[%emt 0:00:10]} (42... Qxg5 $142 43. Rxg5 b5 44. cxb5 d5) 43. Kf1 {[%emt 0:00:12][%cal Rg3h3]} Qa1+ {[%emt 0:00:38]} 44. Kg2 {[%emt 0:00:01][%cal Rg3h3]} Qg1+ {[%emt 0:00:21]} 45. Kh3 {[%emt 0:00:01][%cal Rg5h5]} Qf1+ {[%emt 0:00:24]} 46. Kh4 {[%emt 0:00:07] Weighted Error Value: White=0.15 (very precise) /Black=0.50  Loses game:     	---       	Black=1      Mistake:       	White=4     	Black=7      Inaccurate:     	White=3     	Black=6      OK:         	White=10    	Black=13     Best:        	White=3     	Black=4      Strong:       	White=6     	Black=1} 1-0

[Event "12th National Amateur Chess-ch 2025"]
[Site "Bihar"]
[Date "2025.03.28"]
[Round "6.3"]
[White "Vatsal Singla"]
[Black "Anadkat Kartavya"]
[Result "0-1"]
[Annotator "TA"]
[ECO "C70"]
[WhiteElo "1917"]
[BlackElo "2175"]
[PlyCount "78"]
[EventDate "2025.03.25"]
[EventCountry "IND"]
[SourceTitle "playchess.com"]
[Source "ChessBase"]
[SourceQuality "1"]
[TimeControl "5400+30"]

{[%evp 15,78,52,104,58,58,43,55,49,49,54,67,76,72,72,72,77,85,79,88,78,101,91,105,27,24,-3,28,-12,14,9,11,-222,-229,-246,-235,-237,-229,-208,-234,-247,-236,-254,-266,-353,-340,-420,-393,-566,-587,-776,-792,-789,-789,-879,-706,-832,-841,-807,-779,-1218,-554,-29995,-29996,-29996,-29997]} 1. e4 {[%emt 0:00:02]} e5 {[%emt 0:08:17]} 2. Nf3 {[%emt 0:00:05]} Nc6 {[%emt 0:00:04]} 3. Bb5 {[%emt 0:00:10]} a6 {[%emt 0:01:18]} 4. Ba4 {[%emt 0:00:02]} d6 {[%emt 0:03:17]} 5. O-O {[%emt 0:00:18]} b5 {[%emt 0:01:26]} 6. Bb3 {[%emt 0:00:07]} Na5 {[%emt 0:00:05]} 7. d4 {[%emt 0:21:14]} Nxb3 {[%emt 0:00:22]} 8. axb3 {[%emt 0:00:07]} f6 {[%emt 0:00:10]} (8... Bb7 $14) 9. Qe2 {[%emt 0:02:17] 9.c4 is a critical line. C70: Ruy Lopez: 3...a6 4 Ba4, Norwegian and Delayed Schliemann.} (9. Nc3 $16) 9... Ne7 $14 {[%emt 0:03:14]} 10. Rd1 $146 {[%emt 0:05:28]} ({Predecessor:} 10. Nc3 c6 11. Be3 Qd7 12. Rfd1 Ng6 13. d5 Bb7 14. dxc6 Qxc6 15. Nd5 Be7 16. Nd2 Bd8 {½-½ Arppi,H (2278)-Del Toro Montoya,Y (2270) CUB-FIN email 2019 [16]}) 10... Ng6 {[%emt 0:02:52]} 11. Nc3 {[%emt 0:12:02] Hoping for Nxb5. White is slightly better.} c6 {[%emt 0:08:11]} 12. Be3 {[%emt 0:08:43]} Be7 {[%emt 0:05:42]} 13. d5 {[%emt 0:04:26]} Bd7 {[%emt 0:11:56]} 14. dxc6 {[%emt 0:01:25]} Bxc6 {[%emt 0:00:03]} 15. Nd5 {[%emt 0:00:13]} O-O {[%emt 0:00:45]} 16. c4 {[%emt 0:01:10][%csl Od5] Strong Square White (d5)} f5 {[%emt 0:03:20]} 17. exf5 {[%emt 0:04:23]} Rxf5 {[%emt 0:00:02]} 18. Qd3 {[%emt 0:00:35]} Qf8 {[%emt 0:05:53]} 19. Qe4 {[%emt 0:14:01]} (19. Nd2 $16) 19... Kh8 $11 {[%emt 0:02:57]} 20. Rd2 {[%emt 0:05:02]} Bd8 {[%emt 0:05:05]} 21. Rc1 {[%emt 0:01:14]} (21. c5 $5) 21... Ne7 {[%emt 0:03:47]} 22. Ng5 {[%emt 0:06:05]} bxc4 {[%emt 0:14:14] [#]} (22... h6 {looks sharper.} 23. Ne6 Qf7 24. Nxd8 Rxd8 25. Qh4 Bxd5 26. cxd5 Qe8) 23. h4 $2 {[%emt 0:10:03] White does not recover from this.} Nxd5 $19 {[%emt 0:02:36]} ({Don't take} 23... Bxd5 24. Rxd5 Nxd5 (24... cxb3 $2 {too greedy.} 25. Rxd6 Ba5 26. Ra1 $18) 25. Qxd5 Bxg5 26. hxg5) 24. Rxd5 {[%emt 0:01:07]} Bxg5 {[%emt 0:02:20]} 25. hxg5 {[%emt 0:00:15]} Bxd5 {[%emt 0:01:00]} 26. Qxd5 {[%emt 0:00:05] [#]} cxb3 {[%emt 0:00:32]} 27. Rc7 {[%emt 0:02:19]} Rd8 {[%emt 0:05:49]} 28. Ra7 {[%emt 0:00:55]} Qg8 {[%emt 0:00:58]} 29. Qb7 {[%emt 0:00:30]} Rdf8 {[%emt 0:00:40]} 30. g6 {[%emt 0:00:26]} hxg6 {[%emt 0:00:25]} 31. g4 {[%emt 0:00:08]} (31. Qxa6 $142 Qd5 32. Rd7 Qd1+ 33. Qf1) 31... R5f7 {[%emt 0:00:37]} 32. Qxa6 {[%emt 0:00:34]} Rxa7 {[%emt 0:00:14]} 33. Qxa7 {[%emt 0:00:25][%mdl 4096] Endgame KQR-KQB} Qc4 {[%emt 0:00:45]} 34. Qd7 {[%emt 0:00:28]} Ra8 {[%emt 0:01:21] and ...Ra1+ should not be overlooked} 35. Kh2 {[%emt 0:00:40]} Qc8 {[%emt 0:01:00]} 36. Qxd6 {[%emt 0:00:36]} Qxg4 {[%emt 0:00:07]} 37. Qd5 {[%emt 0:00:15]} Rf8 {[%emt 0:00:41] ( -> ...Rf5)} 38. Qxb3 {[%emt 0:01:02]} Rf5 {[%emt 0:00:25][%cal Rf5h5]} 39. Qb8+ {[%emt 0:00:10]} Kh7 {[%emt 0:00:04] Weighted Error Value: White=0.86/Black=0.31  Loses game:     	White=1     	---        Mistake:       	White=2     	---        Inaccurate:     	White=4     	Black=2      OK:         	White=10    	Black=13     Best:        	---       	Black=1} 0-1

[Event "12th National Amateur Chess-ch 2025"]
[Site "Bihar"]
[Date "2025.03.28"]
[Round "6.4"]
[White "Utkrisht Tuli"]
[Black "Aabhas Kumar Srivastava"]
[Result "1-0"]
[Annotator "TA"]
[ECO "E60"]
[WhiteElo "2020"]
[BlackElo "1756"]
[PlyCount "73"]
[EventDate "2025.03.25"]
[EventCountry "IND"]
[SourceTitle "playchess.com"]
[Source "ChessBase"]
[SourceQuality "1"]
[TimeControl "5400+30"]

{[%evp 9,73,-30,-32,-32,-26,-38,-43,-57,-14,0,0,0,44,37,55,55,54,54,57,66,87,78,87,91,122,117,120,72,31,17,81,76,151,143,366,297,454,439,423,208,196,190,197,141,580,560,538,518,29990,29991,29991,29992,29994,29992,29992,29993,29993,29994,29994,29995,29995,29992,29992,29987,29986,29977]} 1. d4 {[%emt 0:03:38]} Nf6 {[%emt 0:00:15]} 2. c4 {[%emt 0:00:06]} g6 {[%emt 0:00:18]} 3. h4 {[%emt 0:00:03]} c5 {[%emt 0:02:25]} 4. d5 {[%emt 0:00:10]} b5 {[%emt 0:05:34]} 5. Nc3 $146 {[%emt 0:06:53]} (5. cxb5 a6 6. e3 axb5 7. Bxb5 Qa5+ 8. Nc3 Ba6 9. Bxa6 Qxa6 10. Nge2 Bg7 11. O-O {1-0 So,W (2773)-Sindarov,J (2629) Olympiad-44 Chennai 2022 (4.3)}) 5... b4 {[%emt 0:09:28]} 6. Na4 {[%emt 0:01:06] E60: King's Indian: Unusual lines and Fianchetto Variation without Nc3.} d6 {[%emt 0:05:03]} 7. g3 {[%emt 0:08:46]} Bg7 {[%emt 0:07:12]} 8. Bh3 {[%emt 0:06:32] Black is slightly better.} Bb7 {[%emt 0:17:50][%cal Oe7e6]} 9. Nf3 {[%emt 0:08:09]} Na6 {[%emt 0:11:55]} 10. O-O {[%emt 0:02:33]} Nc7 {[%emt 0:04:12]} 11. Re1 {[%emt 0:05:10]} Bc8 {[%emt 0:05:49] Dodges e4} 12. Bxc8 {[%emt 0:02:40]} Qxc8 {[%emt 0:01:24]} 13. e4 {[%emt 0:02:09][%cal Be2e4,Be4e5][%mdl 32] [#] And now e5 would win.} O-O {[%emt 0:04:04]} 14. e5 {[%emt 0:06:22]} Nd7 {[%emt 0:02:48][%cal Rd6e5]} 15. Bf4 {[%emt 0:01:41]} Qa6 {[%emt 0:00:55]} 16. b3 {[%emt 0:03:02]} dxe5 {[%emt 0:02:52]} 17. Nxe5 {[%emt 0:04:42]} Nxe5 {[%emt 0:01:33]} 18. Rxe5 {[%emt 0:03:51]} (18. Bxe5 $142 Bxe5 19. Rxe5) 18... Bxe5 $16 {[%emt 0:01:43]} 19. Bxe5 {[%emt 0:00:42]} Qa5 {[%emt 0:00:29]} (19... Qc8 $1 $11 {keeps the balance.}) 20. Qg4 {[%emt 0:02:23]} f6 {[%emt 0:04:21]} ({Black should try} 20... Rad8) 21. Bf4 {[%emt 0:01:55] White is more active.} Rfe8 $2 {[%emt 0:01:32] [#]} (21... Rad8 $16 22. Be3 Na6) 22. h5 {[%emt 0:01:13]} Kf7 {[%emt 0:01:50]} (22... e5 {was necessary.}) 23. hxg6+ $18 {[%emt 0:02:17]} hxg6 {[%emt 0:00:07]} 24. Kg2 {[%emt 0:00:14]} (24. Be3 Qa6 $16) (24. Qd7 $142) 24... Rad8 {[%emt 0:01:34]} (24... Rh8 $2 25. Qd7 Ne8 26. Qe6+ Kg7 27. Qxe7+ Kg8 28. d6 $18 (28. Nxc5 Rh7 $18) (28. Qxc5 Qxc5 29. Nxc5 g5 $18)) 25. Rh1 {[%emt 0:00:09][%mdl 1024] White has strong compensation.} Rh8 {[%emt 0:01:00] Wards off Rh7+} 26. Re1 {[%emt 0:03:24]} ({Better is} 26. Rxh8 $18 {Rh7+ would kill now.} Rxh8 27. Qd7) 26... f5 $2 {[%emt 0:02:07][%mdl 8192] Black cannot hold the game after this.} (26... Rh5 $16 {is more resistant.} 27. Qf3 Rh7) 27. Qe2 {[%emt 0:00:45]} Rde8 {[%emt 0:00:30]} 28. Qe5 {[%emt 0:00:15]} Na8 {[%emt 0:00:48]} (28... Rh5 $18 29. Qxc7 Qxc7) 29. Qe6+ {[%emt 0:00:06] White mates.} Kf8 {[%emt 0:00:59]} 30. Qxg6 {[%emt 0:00:09]} Qd8 {[%emt 0:02:58]} 31. Bh6+ {[%emt 0:00:17]} Rxh6 {[%emt 0:00:08]} 32. Qxh6+ {[%emt 0:00:05]} Kf7 {[%emt 0:00:20]} 33. Qh7+ {[%emt 0:00:07]} Kf8 {[%emt 0:00:11]} 34. Qxf5+ {[%emt 0:00:04]} Kg7 {[%emt 0:00:11]} 35. Re6 {[%emt 0:00:05]} Qd6 {[%emt 0:00:51]} 36. Rxd6 {[%emt 0:00:25]} exd6 {[%emt 0:00:07]} 37. Qd7+ {[%emt 0:00:05] Weighted Error Value: White=0.20 (precise) /Black=0.72  Loses game:     	---       	Black=2      Mistake:       	White=3     	Black=4      Inaccurate:     	---       	Black=3      OK:         	White=10    	Black=7      Best:        	White=2     	Black=1} 1-0

[Event "12th National Amateur Chess-ch 2025"]
[Site "Bihar"]
[Date "2025.03.28"]
[Round "6.5"]
[White "Archisman Patra"]
[Black "Gurung Rohit"]
[Result "1-0"]
[Annotator "TA"]
[ECO "B00"]
[WhiteElo "1791"]
[BlackElo "1902"]
[PlyCount "41"]
[EventDate "2025.03.25"]
[EventCountry "IND"]
[SourceTitle "playchess.com"]
[Source "ChessBase"]
[SourceQuality "1"]
[TimeControl "5400+30"]

{[%evp 9,41,35,87,87,87,85,92,88,97,80,85,35,111,77,130,107,187,203,199,200,215,196,314,155,187,137,146,80,473,485,450,436,29998,29999]} 1. e4 {[%emt 0:01:37]} b6 {[%emt 0:00:15]} 2. d4 {[%emt 0:00:08][%cal Bd2d4,Bd4d5][%mdl 32]} Bb7 {[%emt 0:00:03]} 3. Nc3 {[%emt 0:00:23]} e6 {[%emt 0:00:06][%cal Be7e6,Be6e5][%mdl 32]} 4. f3 {[%emt 0:00:55]} c5 {[%emt 0:02:50]} 5. d5 {[%emt 0:02:08]} d6 $146 {[%emt 0:01:30]} (5... Nf6 $14) ({Predecessor:} 5... Nf6 6. Bc4 exd5 7. Nxd5 Nxd5 8. Bxd5 Nc6 9. Be3 Be7 10. Qd2 O-O 11. O-O-O Bf6 {1-0 Donovan,L (2246)-Atanasiu,N (1938) Leuven op 24th 2012 (7)}) 6. Bc4 $16 {[%emt 0:05:20] B00: Queen's Fianchetto Defence, Nimzowitsch Defence.} e5 {[%emt 0:00:31]} 7. Nge2 {[%emt 0:00:59]} a6 {[%emt 0:00:10]} 8. a4 {[%emt 0:00:07] White is better.} g6 {[%emt 0:04:12]} 9. O-O {[%emt 0:03:03]} Bg7 {[%emt 0:00:23]} 10. f4 {[%emt 0:06:06]} (10. Ng3 $16) 10... Nd7 {[%emt 0:03:26]} (10... exf4 $1 $14 11. Bxf4 Nf6) 11. f5 {[%emt 0:00:34]} Qe7 {[%emt 0:03:48]} (11... Qh4 $142) 12. Qd3 {[%emt 0:01:17]} h5 {[%emt 0:11:12]} (12... Qh4 $16) 13. fxg6 $18 {[%emt 0:05:24]} fxg6 {[%emt 0:02:16]} 14. Qg3 {[%emt 0:00:19]} Nf8 {[%emt 0:02:46]} 15. Bg5 {[%emt 0:03:47]} Qd7 {[%emt 0:10:46]} (15... Nf6 {is a better defense.} 16. Bh4 Qf7) 16. h3 {[%emt 0:08:55]} (16. Nb5 $18 {is more deadly.}) 16... Bh6 $16 {[%emt 0:07:49]} 17. Qf3 {[%emt 0:20:54]} (17. Bh4 $18) 17... Nh7 {[%emt 0:05:18]} 18. Bh4 $40 {[%emt 0:01:21][%mdl 128] White wants a kill. White is much more active.} (18. Bxh6 $142 Nxh6 19. Rad1) 18... Nf8 $2 {[%emt 0:28:38][%mdl 8192] [#]} (18... Ngf6 $16 {is a better chance.}) 19. Nb5 $1 $18 {[%emt 0:10:02][%cal Ob5d6][%mdl 512] Intending Nxd6+! and mate.} Rh7 {[%emt 0:03:55]} ({Much weaker is} 19... axb5 20. Bxb5 Rh7 21. Bxd7+) 20. Bg5 {[%emt 0:02:14]} Bg7 {[%emt 0:04:48] [#]} (20... axb5 $18 21. Bxb5 (21. Bxh6 Rf7 $18) 21... Qxb5) 21. Nxd6+ $1 {[%emt 0:00:26][%mdl 512] Weighted Error Value: White=0.29 (precise) /Black=0.92  Loses game:     	---       	Black=1      Mistake:       	White=4     	Black=5      OK:         	White=5     	Black=4      Best:        	White=1     	Black=2      Brilliant:      	White=1     	---} 1-0